[Event "SRB-chT Men 1st League 2019"]
[Site "Subotica"]
[Date "2019.09.01"]
[Round "11.18"]
[White "Radovic, Luka"]
[Black "Besedes, Danilo"]
[Result "1/2-1/2"]
[ECO "A12"]
[WhiteElo "2328"]
[BlackElo "2249"]
[Annotator "NA"]
[PlyCount "134"]
[EventDate "2019.08.23"]
[EventType "team-tourn"]
[EventCountry "SRB"]
[SourceTitle "playchess.com"]
[Source "ChessBase"]
[SourceQuality "1"]
[TimeControl "40/5400+30:1800+30"]

1. c4 {[%emt 0:00:00]} c6 {[%emt 0:01:36]} 2. Nf3 {[%emt 0:02:09]} d5 {[%emt 0:00:33]} 3. g3 {[%emt 0:00:42]} Nf6 {[%emt 0:02:56]} 4. b3 {[%emt 0:00:26]} Bf5 {[%emt 0:00:13]} 5. Bg2 {[%emt 0:00:27]} e6 {[%emt 0:00:05]} 6. Bb2 {[%emt 0:00:26]} Be7 {[%emt 0:00:06]} 7. O-O {[%emt 0:00:13]} O-O {[%emt 0:00:07]} 8. d3 {[%emt 0:00:08]} h6 {[%emt 0:00:04]} 9. Nbd2 {[%emt 0:00:13]} Bh7 {[%emt 0:00:22]} 10. Qc2 {[%emt 0:02:23]} Nbd7 {[%emt 0:01:38]} 11. a3 {[%emt 0:03:04]} a5 {[%emt 0:00:04]} 12. Bc3 {[%emt 0:01:30]} Qb6 {[%emt 0:13:47]} 13. Qb2 {[%emt 0:04:38]} c5 {[%emt 0:21:03]} 14. d4 {[%emt 0:14:20]} Rfe8 {[%emt 0:10:07]} 15. Ne5 {[%emt 0:09:54]} cxd4 {[%emt 0:04:28]} 16. Bxd4 {[%emt 0:00:22]} Bc5 {[%emt 0:08:08]} 17. Nxd7 {[%emt 0:09:35]} Bxd4 {[%emt 0:00:32]} 18. Nxb6 {[%emt 0:00:13]} Bxb2 {[%emt 0:00:06]} 19. Ra2 {[%emt 0:09:39]} Ra6 {[%emt 0:00:39]} 20. Nxd5 exd5 {[%emt 0:00:39]} 21. Rxb2 {[%emt 0:00:41]} Rxe2 {[%emt 0:01:03]} 22. cxd5 {[%emt 0:05:52]} Be4 {[%emt 0:01:57]} 23. Rd1 {[%emt 0:08:26]} Bxg2 {[%emt 0:03:17]} 24. Kxg2 {[%emt 0:00:09]} Nxd5 {[%emt 0:00:39]} 25. Nc4 {[%emt 0:01:41]} Ne3+ {[%emt 0:05:35]} 26. Kf3 {[%emt 0:01:45]} Rxb2 {[%emt 0:00:28]} 27. Rd8+ {[%emt 0:00:17]} Kh7 {[%emt 0:00:05]} 28. Nxb2 {[%emt 0:00:11]} Nc2 {[%emt 0:00:07]} 29. a4 {[%emt 0:07:20]} Rb6 {[%emt 0:00:06]} 30. Rd7 {[%emt 0:03:00]} Rxb3+ {[%emt 0:01:29]} 31. Nd3 {[%emt 0:00:03]} Nb4 {[%emt 0:04:41]} 32. Ke2 {[%emt 0:00:46]} Nxd3 {[%emt 0:01:33]} 33. Rxd3 {[%emt 0:00:02]} Rb4 {[%emt 0:00:08]} 34. Rd7 {[%emt 0:00:25]} Kg6 {[%emt 0:00:12]} 35. h4 {[%emt 0:00:47]} Kf6 {[%emt 0:01:37]} 36. Kf3 {[%emt 0:00:47]} Ke6 {[%emt 0:00:37]} 37. Rc7 {[%emt 0:00:04]} g6 {[%emt 0:00:38]} 38. Ke3 {[%emt 0:01:15]} h5 {[%emt 0:01:36]} 39. Kf3 {[%emt 0:00:22]} b6 {[%emt 0:03:38]} 40. Rb7 {[%emt 0:00:00]} f6 {[%emt 0:00:00]} 41. Kg2 {[%emt 0:01:23]} Kd5 {[%emt 0:06:33]} 42. Kf3 {[%emt 0:09:55]} Kc6 {[%emt 0:09:02]} 43. Rf7 {[%emt 0:01:31]} Rxa4 {[%emt 0:00:28]} 44. Rxf6+ {[%emt 0:00:09]} Kb5 {[%emt 0:00:14]} 45. Rxg6 {[%emt 0:00:13]} Rc4 {[%emt 0:00:16]} 46. Rg5+ {[%emt 0:02:12]} Ka4 {[%emt 0:06:45]} 47. Rxh5 {[%emt 0:11:02]} b5 {[%emt 0:00:08]} 48. Rh8 {[%emt 0:02:04]} b4 {[%emt 0:00:07]} 49. Rb8 {[%emt 0:00:35]} b3 {[%emt 0:11:40]} 50. h5 {[%emt 0:00:05]} Rb4 {[%emt 0:00:32]} 51. Rxb4+ {[%emt 0:00:10]} axb4 {[%emt 0:00:05]} 52. h6 {[%emt 0:00:06]} b2 {[%emt 0:00:03]} 53. h7 {[%emt 0:00:05]} b1=Q {[%emt 0:00:05]} 54. h8=Q {[%emt 0:00:08]} Qd3+ {[%emt 0:00:07]} 55. Kg2 {[%emt 0:02:02]} b3 {[%emt 0:00:12]} 56. g4 {[%emt 0:02:46]} Qd2 {[%emt 0:02:28]} 57. Qa8+ {[%emt 0:01:39]} Kb4 {[%emt 0:00:15]} 58. Qf8+ {[%emt 0:00:27]} Kc4 {[%emt 0:00:13]} 59. Qc8+ {[%emt 0:05:02]} Kd3 {[%emt 0:00:11]} 60. Qf5+ {[%emt 0:00:17]} Kc3 {[%emt 0:00:15]} 61. Qc5+ {[%emt 0:00:21]} Kd3 {[%emt 0:00:57]} 62. g5 {[%emt 0:02:25]} Qf4 {[%emt 0:02:03]} 63. Qd5+ {[%emt 0:00:48]} Kc2 {[%emt 0:00:40]} 64. Qc6+ {[%emt 0:00:39]} Kd2 {[%emt 0:01:28]} 65. Qd5+ {[%emt 0:00:26]} Kc2 {[%emt 0:01:51]} 66. Qc6+ {[%emt 0:00:08]} Kd2 {[%emt 0:01:22]} 67. Qd5+ {[%emt 0:00:37]} Kc2 {[%emt 0:00:51]} 1/2-1/2